Workbook

Sheet Superpesis
B1: Petra Kuisma | E1: 28.11.1985
B2: SUPERPESIS | E2: Runkosarja | I2: Kärkilyönnit (KL), pesänvälit | P2: Ylempi loppusarja | U2: Alempi loppusarja | Z2: Arvo-ottelut ja mitalit | AF2: Runkosarjan jälkeen
B3: Vuosi | C3: Sija | D3: Seura | E3: OTT | F3: KUN | G3: LÖI | H3: TOI | I3: KL | J3: 0 > 1 | K3: 1 > 2 | L3: 2 > 3 | M3: 3 > k | N3: KL-% | P3: OTT | Q3: KUN | R3: LÖI | S3: TOI | T3: KL | U3: OTT | V3: KUN | W3: LÖI | X3: TOI | Y3: KL | Z3: IL | AA3: LL | AB3: Halli | AC3: K | AD3: H | AE3: P
B4: 2002 | D4: Pesäkarhut 2 | F4: suomensarja
B5: 2003 | D5: Pesäkarhut 2 | F5: suomensarja
B6: 2003 | C6: 6. | D6: Pesäkarhut | E6: 8 | F6: 0 | G6: 1 | H6: 1 | I6: 10 | J6: 2 | K6: 5 | L6: 2 | M6: =PRODUCT(F6+G6) -> 1 | N6: 40.0 % | O6: =PRODUCT(I6/N6) -> 25 | P6: 1 | Q6: 0 | R6: 0 | S6: 2 | T6: 3 | AF6: play off
B7: 2004 | C7: 3. | D7: Pesäkarhut | E7: 12 | F7: 0 | G7: 1 | H7: 1 | I7: 18 | J7: 4 | K7: 6 | L7: 7 | M7: =PRODUCT(F7+G7) -> 1 | N7: 48.6 % | O7: =PRODUCT(I7/N7) -> 37.03703704 | AE7: 1
B8: 2005 | D8: Pesäkarhut 2 | F8: suomensarja | O8: 0
B9: 2005 | C9: 2. | D9: Pesäkarhut | E9: 5 | F9: 0 | G9: 0 | H9: 1 | I9: 5 | J9: 1 | K9: 1 | L9: 3 | M9: =PRODUCT(F9+G9) -> 0 | N9: 26.3 % | O9: =PRODUCT(I9/N9) -> 19.01140684 | AD9: 1
B10: Yhteensä | E10: =SUM(E4:E9) -> 25 | F10: 0 | G10: 2 | H10: 3 | I10: 33 | J10: 7 | K10: 12 | L10: 12 | M10: 2 | N10: =PRODUCT(I10/O10) -> 40.7 % | O10: =SUM(O6:O9) -> 81.04844388 | P10: =SUM(P4:P9) -> 1 | Q10: 0 | R10: 0 | S10: 2 | T10: 3 | U10: 0 | V10: 0 | W10: 0 | X10: 0 | Y10: 0 | Z10: 0 | AA10: 0 | AB10: 0 | AC10: 0 | AD10: 1 | AE10: 1
B11: Pesispörssi | D11: =SUM(F10:H10)+((I10-F10-G10)/3)+(E10/3)+(Z10*25)+(AA10*25)+(AB10*10)+(AC10*25)+(AD10*20)+(AE10*15)-20 -> 38.7
B13: URA SUPERISSA | E13: OTT | F13: KUN | G13: LÖI | H13: TOI | I13: KL | K13: ka/L | L13: ka/T | M13: ka/KL | N13: K - % | P13: ENSIMMÄISET
B14: Runkosarja | E14: =PRODUCT(E10) -> 25 | F14: =PRODUCT(F10) -> 0 | G14: =PRODUCT(G10) -> 2 | H14: =PRODUCT(H10) -> 3 | I14: =PRODUCT(I10) -> 33 | K14: =PRODUCT((F14+G14)/E14) -> 0.08 | L14: =PRODUCT(H14/E14) -> 0.12 | M14: =PRODUCT(I14/E14) -> 1.32 | N14: =PRODUCT(N10) -> 40.7 % | O14: =PRODUCT(O10) -> 81.04844388 | P14: Ottelu | S14: 28.05. 2003 Pesäkarhut - Fera 2-0 (3-0, 4-0) | AD14: 1. ottelu | AF14: 17 v 6 kk 0 pv
B15: Ylempi loppusarja | E15: =PRODUCT(P10) -> 1 | F15: =PRODUCT(Q10) -> 0 | G15: =PRODUCT(R10) -> 0 | H15: =PRODUCT(S10) -> 2 | I15: =PRODUCT(T10) -> 3 | K15: =PRODUCT((F15+G15)/E15) -> 0.00 | L15: =PRODUCT(H15/E15) -> 2.00 | M15: =PRODUCT(I15/E15) -> 3.00 | N15: 60.0 % | O15: =PRODUCT(I15/N15) -> 5 | P15: Lyöty juoksu | S15: 13.07. 2003 Lippo - Pesäkarhut 0-2 (2-6, 0-4) | AD15: 6. ottelu | AF15: 17 v 7 kk 15 pv
B16: Alempi loppusarja | P16: Tuotu juoksu | S16: 22.07. 2003 Pesä Ysit - Pesäkarhut 0-2 (3-5, 0-4) | AD16: 8. ottelu | AF16: 17 v 7 kk 24 pv
B17: KAIKKI | E17: =SUM(E14:E16) -> 26 | F17: =SUM(F14:F16) -> 0 | G17: =SUM(G14:G16) -> 2 | H17: =SUM(H14:H16) -> 5 | I17: =SUM(I14:I16) -> 36 | K17: =PRODUCT((F17+G17)/E17) -> 0.08 | L17: =PRODUCT(H17/E17) -> 0.19 | M17: =PRODUCT(I17/E17) -> 1.38 | N17: =PRODUCT(I17/O17) -> 41.8 % | O17: =SUM(O14:O16) -> 86.04844388 | P17: Kunnari
B19: Seurat | D19: Pesäkarhut = Pesäkarhut, Pori (1985)

Sheet Arvo-ottelut
B1: ITÄ - LÄNSI - KORTTI
B2: Petra Kuisma | C2: 28.11.1985
B3: B-TYTÖT | C3: Itä - Länsi, tulos | D3: Joukkue | E3: Seura | G3: V | H3: T | I3: H | J3: Up. | K3: Lj. | L3: Palk. | M3: O | N3: K | O3: L | P3: T | Q3: KL | R3: 1 | S3: 2 | T3: 3 | U3: k | V3: KL-% | W3: Pelinjohtaja | X3: Yleisöä
B4: 20.06. 2004 Hyvinkää | C4: 2-1 (5-6, 15-1, 0-0, 2-1) | D4: Länsi | E4: Pesäkarhut | I4: 1 | J4: 3p | K4: 3 | M4: 1 | P4: 1 | Q4: 3/9 | R4: 0/3 | S4: 2/5 | T4: 1/1 | V4: 33.3 % | W4: Marko Ruuskanen | X4: 1380
